bitfinex/quotes_BTCUSD_20250802
["timestamp","ask_amount","ask_price","bid_price","bid_amount"]
[1754153570812,0.39011971,113260.0,113250.0,0.75340927]
[1754153571043,0.39208971,113260.0,113250.0,0.75540927]
[1754153574026,0.37826654,113260.0,113250.0,0.75540927]
[1754153575074,0.37826654,113260.0,113250.0,0.89716927]
[1754153575306,0.37826654,113260.0,113250.0,0.90116927]
[1754153575938,0.37826654,113260.0,113250.0,0.65776036]
[1754153576151,0.37826654,113260.0,113250.0,0.79948036]
[1754153577322,0.37826654,113260.0,113250.0,0.14372]
[1754153577566,0.37826654,113260.0,113250.0,0.79548036]
[1754153578298,0.39209001,113260.0,113250.0,0.79548036]
[1754153578551,0.39209001,113260.0,113250.0,0.32788018]
[1754153578799,0.39209001,113260.0,113250.0,0.4870492]
[1754153580016,0.39209001,113260.0,113250.0,0.15916902]
[1754153580276,0.39209001,113260.0,113250.0,0.4870492]
[1754153581036,0.19184001,113260.0,113250.0,0.81492938]
[1754153581297,0.05012001,113260.0,113250.0,0.81492938]
[1754153581570,0.55212001,113260.0,113250.0,0.81492938]
[1754153582157,0.05212001,113260.0,113250.0,0.81492938]
[1754153582342,0.05212001,113260.0,113250.0,0.80992938]
[1754153584784,0.05212001,113260.0,113250.0,0.80592938]
[1754153589409,0.05212001,113260.0,113250.0,0.80092938]
[1754153590316,0.05212001,113260.0,113250.0,0.4730492]
[1754153591009,0.05212001,113260.0,113250.0,0.80092938]
[1754153591627,0.05212001,113260.0,113250.0,0.79692938]
[1754153592696,0.05012001,113260.0,113250.0,0.79692938]
[1754153593771,0.05212001,113260.0,113250.0,0.79692938]
[1754153594622,0.05012001,113260.0,113250.0,0.79692938]
[1754153596429,0.05012001,113260.0,113250.0,0.79192938]
[1754153596640,0.05212001,113260.0,113250.0,0.79192938]
[1754153597105,0.04703001,113260.0,113250.0,0.79192938]
[1754153597601,0.05014001,113260.0,113250.0,0.79192938]
[1754153598763,0.05014001,113260.0,113250.0,0.78792938]
[1754153598986,0.05214001,113260.0,113250.0,0.78792938]
[1754153599409,0.34,113270.0,113250.0,0.78792938]
[1754153599644,0.34,113270.0,113260.0,0.32788018]
[1754153599869,0.342,113270.0,113260.0,0.14156]
[1754153600106,0.35582353,113270.0,113260.0,0.46944018]
[1754153600573,0.35582353,113270.0,113260.0,0.14156]
[1754153601482,0.38993353,113270.0,113260.0,0.14156]
[1754153602644,0.38993353,113270.0,113250.0,0.48699304]
[1754153602838,0.35582353,113270.0,113260.0,0.32788018]
[1754153603062,0.35582353,113270.0,113260.0,0.28288018]
[1754153603280,4.708681,113260.0,113250.0,0.15911286]
[1754153603533,0.03611,113260.0,113250.0,0.14166384]
[1754153603757,0.17763,113260.0,113250.0,0.00014384]
[1754153604470,0.17763,113260.0,113250.0,0.32802402]
[1754153605906,0.17863,113260.0,113250.0,0.32402402]
[1754153608019,0.34,113250.0,113240.0,0.4868492]
[1754153608254,0.37784,113250.0,113240.0,0.4868492]
[1754153608486,0.37784,113250.0,113240.0,0.4889392]
[1754153608740,0.38867468,113250.0,113240.0,0.4889392]
[1754153609623,0.38867468,113250.0,113240.0,0.4899392]
[1754153609864,0.38867468,113250.0,113240.0,0.4909392]
[1754153610763,0.38867468,113250.0,113240.0,0.4859392]
[1754153610980,0.35382468,113250.0,113240.0,0.5207192]
[1754153611681,0.38668468,113250.0,113240.0,0.5207192]
[1754153613042,0.38668468,113250.0,113240.0,0.5167192]
[1754153616998,0.35382468,113250.0,113240.0,0.84459938]
[1754153617246,0.35382468,113250.0,113240.0,0.5167192]
[1754153617488,0.35382468,113250.0,113240.0,0.92879927]
[1754153617711,0.35382468,113250.0,113240.0,0.92379927]
[1754153622004,0.01382468,113250.0,113240.0,0.92379927]
[1754153622223,0.01382468,113250.0,113240.0,0.95034927]
[1754153623784,8.461e-05,113260.0,113240.0,0.95034927]
[1754153624003,8.461e-05,113260.0,113250.0,0.88348775]
[1754153624256,8.461e-05,113260.0,113250.0,0.91815025]
[1754153624476,8.461e-05,113260.0,113250.0,0.26238989]
[1754153624700,8.461e-05,113260.0,113250.0,0.91815025]
[1754153624917,8.461e-05,113260.0,113250.0,0.91315025]
[1754153625135,0.00108461,113260.0,113250.0,0.90915025]
[1754153625367,8.461e-05,113260.0,113250.0,0.90915025]
[1754153625815,0.00108461,113260.0,113250.0,0.90915025]
[1754153627159,0.01490767,113260.0,113250.0,0.90915025]
[1754153630081,0.01490767,113260.0,113250.0,0.91015025]
[1754153630289,0.01490767,113260.0,113250.0,0.25438989]
[1754153630530,0.01490767,113260.0,113250.0,0.91015025]
[1754153630747,0.01490767,113260.0,113250.0,0.90915025]
[1754153630991,0.01390767,113260.0,113250.0,0.90915025]
[1754153631222,0.01390767,113260.0,113250.0,0.91115025]
[1754153631433,0.01390767,113260.0,113250.0,0.91315025]
[1754153631882,0.01390767,113260.0,113250.0,0.90815025]
[1754153632087,0.01390767,113260.0,113250.0,0.90415025]
[1754153637358,8.461e-05,113260.0,113250.0,0.90415025]
[1754153638886,8.461e-05,113260.0,113250.0,0.90461103]
[1754153639099,0.03170461,113260.0,113250.0,0.89561103]
[1754153640348,0.04552789,113260.0,113250.0,0.89561103]
[1754153640565,0.01390789,113260.0,113250.0,0.89561103]
[1754153641937,0.04552789,113260.0,113250.0,0.89561103]
[1754153644900,0.01390789,113260.0,113250.0,0.89561103]
[1754153646068,0.04552789,113260.0,113250.0,0.89061103]
[1754153648715,0.17159176,113280.0,113270.0,0.32811057]
[1754153648959,0.17363967,113280.0,113270.0,0.46919057]
[1754153650566,0.50204791,113280.0,113270.0,0.46919057]
[1754153650813,0.03680791,113280.0,113270.0,0.46919057]
[1754153651031,0.03780791,113280.0,113270.0,0.46919057]
[1754153651254,0.03780791,113280.0,113270.0,0.46519057]
[1754153651713,0.03780791,113280.0,113270.0,0.46919057]
[1754153651926,0.05163055,113280.0,113270.0,0.46919057]
[1754153653072,0.05163055,113280.0,113270.0,0.46419057]
[1754153653530,0.04849055,113280.0,113270.0,0.46615057]
[1754153653751,0.04849055,113280.0,113270.0,0.49948057]
[1754153653971,0.01487055,113280.0,113270.0,0.84504016]
[1754153654255,0.01487055,113280.0,113270.0,0.99928339]
[1754153654464,0.00104791,113280.0,113270.0,1.32739396]
[1754153654889,0.00104791,113280.0,113270.0,0.86320339]
[1754153655109,0.00104791,113280.0,113270.0,1.00420339]
[1754153656188,0.00104791,113280.0,113270.0,1.00620339]
[1754153656399,0.00104791,113280.0,113270.0,0.93616005]
[1754153656634,4.791e-05,113280.0,113270.0,0.93616005]
[1754153656846,4.791e-05,113280.0,113270.0,0.93582093]
[1754153657055,4.791e-05,113280.0,113270.0,0.93782093]
[1754153657509,4.791e-05,113280.0,113270.0,0.79682093]
[1754153657712,4.791e-05,113280.0,113270.0,0.93778093]
[1754153658357,0.01386775,113280.0,113270.0,0.93778093]
[1754153664054,0.01386775,113280.0,113270.0,0.28189891]
[1754153664302,0.01386775,113280.0,113270.0,0.93778093]
[1754153668232,0.01386775,113280.0,113270.0,0.60967992]
[1754153670308,0.01386775,113280.0,113270.0,0.93762093]
[1754153673547,0.01386775,113280.0,113270.0,0.60967992]
[1754153674404,0.04658775,113280.0,113270.0,0.46566992]
[1754153674610,0.04658775,113280.0,113270.0,0.57430992]
[1754153674842,0.04951775,113280.0,113270.0,0.57430992]
[1754153675066,0.04951775,113280.0,113270.0,0.24636891]
[1754153675292,0.04951775,113280.0,113270.0,0.56930992]
[1754153676159,0.04658775,113280.0,113270.0,0.59983992]
[1754153676365,0.04658775,113280.0,113270.0,0.60185992]
[1754153678515,0.04658775,113280.0,113270.0,0.60509992]
[1754153678938,0.04658775,113280.0,113270.0,0.42858992]
[1754153679172,0.04951775,113280.0,113270.0,0.48507003]
[1754153679389,0.38951775,113280.0,113270.0,0.14468]
[1754153679605,0.37569791,113280.0,113270.0,0.14468]
[1754153680084,0.37569791,113280.0,113270.0,0.14268]
[1754153680299,0.37569791,113280.0,113270.0,0.14068]
[1754153680567,0.37569791,113280.0,113270.0,0.14168]
[1754153680983,0.03569791,113280.0,113270.0,0.14168]
[1754153682301,0.04951952,113280.0,113270.0,0.46562101]
[1754153683494,0.04951952,113280.0,113270.0,0.46162101]
[1754153683710,0.04658952,113280.0,113270.0,0.47907003]
[1754153683930,0.01386952,113280.0,113270.0,0.51486003]
[1754153684139,4.791e-05,113280.0,113270.0,0.18691902]
[1754153684355,0.00200791,113280.0,113270.0,0.51486003]
[1754153684569,0.03276791,113280.0,113270.0,0.51486003]
[1754153684783,0.03276791,113280.0,113270.0,0.51162003]
[1754153685213,0.03276791,113280.0,113270.0,0.15112902]
[1754153685425,0.03569791,113280.0,113270.0,0.16004902]
[1754153685841,5.08437891,113280.0,113270.0,0.1426]
[1754153686272,0.37569791,113280.0,113270.0,0.1426]
[1754153686487,5.08437891,113280.0,113270.0,0.002]
[1754153686716,5.49651981,113280.0,113270.0,0.002]
[1754153686960,0.35386987,113280.0,113270.0,0.90431536]
[1754153687158,0.35386987,113280.0,113270.0,1.00596427]
[1754153687159,0.01386987,113280.0,113270.0,1.00596427]
[1754153687832,0.01386987,113280.0,113270.0,1.00496427]
[1754153688288,0.01486987,113280.0,113270.0,0.27903891]
[1754153688496,0.01386987,113280.0,113270.0,0.93492093]
[1754153689434,0.01386987,113280.0,113270.0,0.96446293]
[1754153689855,0.01486987,113280.0,113270.0,0.96446293]
[1754153690308,0.01386987,113280.0,113270.0,0.96446293]
[1754153690525,0.01386987,113280.0,113270.0,0.96646293]
[1754153691584,0.01386987,113280.0,113270.0,0.63852192]
[1754153691790,0.01386987,113280.0,113270.0,0.96646293]
[1754153693750,0.01386987,113280.0,113270.0,0.16998091]
[1754153693964,0.01386987,113280.0,113270.0,0.49792192]
[1754153694181,0.01386987,113280.0,113270.0,0.63844192]
[1754153695931,0.01386987,113280.0,113270.0,0.96638293]
[1754153698149,0.01386987,113280.0,113270.0,1.72936728]
[1754153698368,0.0305,113330.0,113280.0,0.40744902]
[1754153698583,0.0305,113340.0,113330.0,0.01744902]
[1754153698801,0.0330396,113340.0,113330.0,0.49005597]
[1754153699059,0.02046268,113340.0,113330.0,0.60665992]
[1754153699274,0.02046268,113340.0,113330.0,0.60165992]
[1754153699929,0.0004796,113340.0,113330.0,0.60165992]
[1754153700397,0.01429312,113340.0,113330.0,0.5892109]
[1754153700834,0.01429312,113340.0,113330.0,0.5902109]
[1754153701271,0.01529312,113340.0,113330.0,0.5902109]
[1754153701964,0.01429312,113340.0,113330.0,0.5902109]
[1754153702475,0.01429312,113340.0,113330.0,0.60765992]
[1754153702941,0.01629312,113340.0,113330.0,0.60765992]
[1754153703173,0.01835312,113340.0,113330.0,0.46717992]
[1754153703395,0.01835312,113340.0,113330.0,0.48679003]
[1754153703396,0.05187312,113340.0,113330.0,0.48679003]
[1754153703837,0.07156848,113340.0,113330.0,0.48679003]
[1754153704322,0.05775496,113340.0,113330.0,0.48679003]
[1754153706308,0.05473496,113340.0,113330.0,0.48179003]
[1754153706976,0.06854885,113340.0,113330.0,0.48377003]
[1754153707196,0.06854885,113340.0,113330.0,0.51545003]
[1754153707417,0.07156885,113340.0,113330.0,0.48179003]
[1754153708107,0.07156885,113340.0,113330.0,0.34139003]
[1754153708335,0.07156885,113340.0,113330.0,0.48171003]
[1754153709917,0.56073445,113370.0,113330.0,0.48171003]
[1754153710146,0.01381393,113340.0,113330.0,0.51632003]
[1754153710371,0.01381393,113340.0,113330.0,0.51830003]
[1754153710593,4.513848,113360.0,113330.0,0.51830003]
[1754153710811,0.01381393,113340.0,113330.0,0.51830003]
[1754153711034,4.513848,113360.0,113330.0,0.51830003]
[1754153711265,0.01381391,113340.0,113330.0,0.51830003]
[1754153711481,4.513848,113360.0,113330.0,0.51830003]
[1754153711753,0.01381391,113340.0,113330.0,0.51830003]
[1754153711981,0.02916,113350.0,113330.0,0.51830003]
[1754153712202,4.513848,113360.0,113330.0,0.51830003]
[1754153712416,0.01381378,113350.0,113330.0,0.51830003]
[1754153712628,0.01381378,113350.0,113330.0,0.18635902]
[1754153713080,4.513848,113340.0,113330.0,0.14972902]
[1754153713298,4.513848,113340.0,113330.0,0.14028]
[1754153713523,4.513848,113340.0,113330.0,0.13528]
[1754153715986,4.513848,113340.0,113330.0,0.13628]
[1754153716670,4.515848,113340.0,113330.0,0.13628]
[1754153716909,4.52966294,113340.0,113330.0,0.001]
[1754153718758,4.53066294,113340.0,113330.0,0.001]
[1754153719752,4.53066294,113340.0,113320.0,0.51724003]
[1754153719753,4.513848,113330.0,113320.0,0.51724003]
[1754153719975,4.513848,113330.0,113320.0,0.37898003]
[1754153720198,4.513848,113330.0,113320.0,0.51918003]
[1754153720645,4.513848,113330.0,113320.0,0.51418003]
[1754153721177,0.00014373,113330.0,113320.0,0.51418003]
[1754153721437,0.50014373,113330.0,113320.0,0.51418003]
[1754153723343,0.50114373,113330.0,113320.0,0.51418003]
[1754153724136,0.50114373,113330.0,113320.0,0.14016]
[1754153724342,0.00914373,113330.0,113320.0,0.14016]
[1754153724591,0.50114373,113330.0,113320.0,0.17184]
[1754153725026,0.34114373,113330.0,113310.0,0.03819]
[1754153725212,4.85499173,113330.0,113320.0,0.14016]
[1754153726148,4.85499173,113330.0,113310.0,0.03819]
[1754153726389,4.853848,113320.0,113310.0,0.17835]
[1754153726692,0.34,113320.0,113310.0,0.50834101]
[1754153726970,0.34,113320.0,113310.0,0.50434101]
[1754153727249,0.34,113320.0,113310.0,0.1764]
[1754153727466,0.34,113320.0,113310.0,0.03624]
[1754153727689,0.34,113320.0,113310.0,0.49930101]
[1754153728339,0.35381663,113320.0,113310.0,0.49930101]
[1754153728779,0.35381663,113320.0,113310.0,0.17459]
[1754153729830,0.35579663,113320.0,113310.0,0.17459]
[1754153730298,0.35579663,113320.0,113310.0,0.17559]
[1754153730758,0.35381663,113320.0,113310.0,0.50353101]
[1754153733779,0.35381663,113320.0,113310.0,0.49953101]
[1754153734227,0.35381663,113320.0,113310.0,0.17159]
[1754153734451,0.35381663,113320.0,113310.0,0.49953101]
[1754153734939,0.35381663,113320.0,113310.0,0.49453101]
[1754153735621,0.35579663,113320.0,113310.0,0.16659]
[1754153736117,0.35579663,113320.0,113310.0,0.14104]
[1754153736118,0.71390764,113320.0,113310.0,0.14104]
[1754153736345,0.71390764,113320.0,113310.0,0.001]
[1754153736346,0.85394764,113320.0,113310.0,0.001]
[1754153736573,0.52600663,113320.0,113310.0,0.001]
[1754153736796,0.52600663,113320.0,113300.0,0.52392003]
[1754153737017,0.52317663,113320.0,113300.0,0.52392003]
[1754153737247,0.52617663,113320.0,113300.0,0.52392003]
[1754153737440,0.52417663,113320.0,113300.0,0.52392003]
[1754153737965,0.53137927,113320.0,113300.0,0.52392003]
[1754153738195,0.53220934,113320.0,113300.0,0.52392003]
[1754153738419,0.52900663,113320.0,113300.0,0.52392003]
[1754153738669,0.34,113310.0,113300.0,0.05593902]
[1754153738890,0.36933,113310.0,113300.0,0.15965555]
[1754153739121,0.34199,113310.0,113300.0,0.19491555]
[1754153739351,0.34199,113310.0,113300.0,0.19798902]
[1754153739804,0.34,113310.0,113300.0,0.52593003]
[1754153740034,0.34,113310.0,113300.0,0.19798902]
[1754153740259,0.37770983,113310.0,113300.0,0.52593003]
[1754153740722,0.87770983,113310.0,113300.0,0.52593003]
[1754153740944,0.37770983,113310.0,113300.0,0.52593003]
[1754153741874,0.37770983,113310.0,113300.0,0.52093003]
[1754153742582,4.513848,113310.0,113300.0,0.52093003]
[1754153743044,0.03670624,113310.0,113300.0,0.52093003]
[1754153743444,4.513848,113310.0,113300.0,0.52093003]
[1754153746442,4.513848,113310.0,113300.0,0.19298902]
[1754153746883,4.513848,113310.0,113300.0,0.52093003]
[1754153746884,4.515828,113310.0,113300.0,0.52093003]
[1754153747097,0.00198,113310.0,113300.0,0.52093003]
[1754153747305,0.03526311,113310.0,113300.0,0.19298902]
[1754153747534,0.03526311,113310.0,113300.0,0.52093003]
[1754153747751,4.513848,113310.0,113300.0,0.52093003]
[1754153749797,4.513848,113310.0,113300.0,0.51593003]
[1754153750004,0.34,113310.0,113300.0,0.51593003]
[1754153750273,0.34,113310.0,113300.0,0.18798902]
[1754153750548,0.34,113310.0,113300.0,0.51593003]
[1754153750763,0.37585884,113310.0,113300.0,0.51593003]
[1754153757385,0.37585884,113310.0,113300.0,0.51093003]
[1754153760546,0.37783884,113310.0,113300.0,0.51093003]
[1754153763403,0.37585884,113310.0,113300.0,0.51093003]
[1754153764541,0.37585884,113310.0,113300.0,0.50593003]
[1754153767861,0.37585884,113310.0,113300.0,0.17798902]
[1754153768074,0.37585884,113310.0,113300.0,0.50593003]
[1754153771492,0.37585884,113310.0,113300.0,0.50093003]
[1754153777995,0.01381663,113320.0,113300.0,0.50093003]
[1754153777996,0.01381663,113320.0,113310.0,0.01744902]
[1754153778219,0.03664043,113330.0,113310.0,0.79807726]
[1754153778436,0.03664043,113330.0,113320.0,0.48803003]
[1754153778653,0.00014373,113330.0,113320.0,0.49005003]
[1754153778866,0.00014373,113330.0,113320.0,0.52341003]
[1754153779095,0.00014373,113330.0,113320.0,0.60760992]
[1754153779607,0.03626003,113330.0,113320.0,0.60660992]
[1754153779861,0.01395728,113330.0,113320.0,0.60660992]
[1754153780105,0.01595728,113330.0,113320.0,0.60660992]
[1754153781826,0.01395728,113330.0,113320.0,0.60660992]
[1754153784115,0.04900256,113330.0,113320.0,0.60660992]
[1754153784975,0.01395728,113330.0,113320.0,0.60660992]
[1754153787554,0.01395728,113330.0,113320.0,1.03150752]
[1754153787807,0.00014373,113330.0,113320.0,1.03150752]
[1754153788027,0.00014373,113330.0,113320.0,1.05803752]
[1754153789098,0.00014373,113330.0,113320.0,1.06103752]
[1754153789786,0.00014373,113330.0,113320.0,0.66236446]
[1754153790221,0.00014373,113330.0,113320.0,0.66436446]
[1754153790434,0.00014373,113330.0,113320.0,0.99230547]
[1754153790648,0.0139561,113330.0,113320.0,0.99230547]
[1754153790871,0.0139561,113330.0,113320.0,0.66524446]
[1754153791505,0.0139561,113330.0,113320.0,0.99318547]
[1754153791979,0.0139561,113330.0,113320.0,0.33730345]
[1754153792227,0.0139561,113330.0,113320.0,0.66524446]
[1754153793299,0.0139561,113330.0,113320.0,0.99318547]
[1754153795482,0.0139561,113330.0,113320.0,1.02009872]
[1754153804368,0.0139561,113330.0,113320.0,1.28979872]
[1754153805420,0.0139561,113330.0,113320.0,1.65479872]
[1754153805623,0.00014373,113330.0,113320.0,1.65479872]
[1754153806263,0.00014373,113330.0,113320.0,1.65279872]
[1754153806476,0.00014373,113330.0,113320.0,0.9939167]
[1754153806683,0.00014373,113330.0,113320.0,1.65479872]
[1754153807123,0.00014373,113330.0,113320.0,1.65879872]
[1754153810118,0.01395482,113330.0,113320.0,1.0029167]
[1754153810399,0.01395482,113330.0,113320.0,1.65879872]
[1754153811708,0.00014373,113330.0,113320.0,1.68379872]
[1754153813022,0.00014373,113330.0,113320.0,2.31704973]
[1754153813240,0.00014373,113330.0,113320.0,2.01761336]
[1754153815200,0.00014373,113330.0,113320.0,1.92446336]
[1754153816862,0.00014373,113330.0,113320.0,1.89595872]
[1754153820378,0.00014373,113330.0,113320.0,1.1005167]
[1754153820615,0.00014373,113330.0,113320.0,1.89567872]
[1754153824184,0.00014373,113330.0,113320.0,1.2397967]
[1754153824410,0.00014373,113330.0,113320.0,1.89567872]
[1754153825254,0.00014373,113330.0,113320.0,1.98882872]
[1754153830468,0.00014373,113330.0,113320.0,1.89567872]
[1754153834848,0.00014373,113330.0,113320.0,3.20470064]
[1754153835076,0.00014373,113330.0,113320.0,3.06542064]
[1754153835292,0.00014373,113330.0,113320.0,3.29773064]
[1754153836984,0.00014373,113330.0,113320.0,1.98771142]
[1754153837993,0.00014373,113330.0,113320.0,1.96079817]
[1754153838159,0.04237941,113360.0,113350.0,0.01744902]
[1754153838362,0.04435941,113360.0,113350.0,0.84015682]
[1754153838586,0.04435941,113360.0,113350.0,0.83795127]
[1754153838808,0.04435941,113360.0,113350.0,0.86447027]
[1754153839229,0.04635941,113360.0,113350.0,0.86447027]
[1754153840911,0.04735941,113360.0,113350.0,0.86447027]
[1754153841591,0.04635941,113360.0,113350.0,0.86447027]
[1754153841800,0.04435941,113360.0,113350.0,0.86447027]
[1754153842231,0.04535941,113360.0,113350.0,0.86447027]
[1754153843550,0.04535941,113360.0,113350.0,0.86443027]
[1754153846486,0.01678941,113360.0,113350.0,0.89601027]
[1754153846926,0.04136941,113360.0,113350.0,0.86443027]
[1754153847120,0.04419941,113360.0,113350.0,0.86443027]
[1754153847362,0.04419941,113360.0,113350.0,0.90035127]
[1754153847588,0.04419941,113360.0,113350.0,0.86443027]
[1754153848655,0.04136941,113360.0,113350.0,0.86443027]
[1754153848926,0.04136941,113360.0,113350.0,0.59473027]
[1754153850519,0.01678941,113360.0,113350.0,0.66188845]
[1754153851233,0.01678941,113360.0,113350.0,0.66505845]
[1754153851467,0.01678941,113360.0,113350.0,0.66711845]
[1754153852778,0.01678941,113360.0,113350.0,0.62631027]
[1754153854331,0.01678941,113360.0,113350.0,0.66208301]
[1754153854983,0.01678941,113360.0,113350.0,0.62631027]
[1754153855867,0.01678941,113360.0,113350.0,0.62948027]
[1754153856082,0.01678941,113360.0,113350.0,0.63154027]
[1754153856977,0.01678941,113360.0,113350.0,0.95905301]
[1754153857589,0.01678941,113360.0,113350.0,0.9953033]
[1754153858002,0.01678941,113360.0,113350.0,0.95905301]
[1754153860248,0.01678941,113360.0,113350.0,0.30409791]
[1754153860462,0.01678941,113360.0,113350.0,0.95905301]
[1754153861497,0.21179773,113390.0,113350.0,0.95905301]
[1754153861668,4.513848,113390.0,113370.0,0.34492657]
[1754153861865,4.84132555,113390.0,113380.0,0.139]
[1754153862112,0.01380803,113390.0,113380.0,0.139]
[1754153862354,0.01380803,113390.0,113380.0,0.48392657]
[1754153862562,0.66747755,113400.0,113380.0,0.48392657]
[1754153862772,0.005,113390.0,113380.0,0.01744902]
[1754153862980,0.007,113390.0,113380.0,0.48392657]
[1754153863192,0.002,113390.0,113380.0,0.48392657]
[1754153863405,0.03721089,113390.0,113380.0,0.15644902]
[1754153863616,0.03521089,113390.0,113380.0,0.47892657]
[1754153863820,4.791e-05,113400.0,113380.0,0.92218401]
[1754153864026,0.00304791,113400.0,113390.0,0.32747755]
[1754153864209,0.00304791,113400.0,113380.0,0.59787646]
[1754153864461,4.791e-05,113400.0,113390.0,0.32747755]
[1754153864663,4.791e-05,113400.0,113380.0,0.27039891]
[1754153864877,0.34133247,113400.0,113380.0,0.26722891]
[1754153865087,0.01985492,113400.0,113380.0,0.56312646]
[1754153865298,0.34733247,113400.0,113380.0,0.56312646]
[1754153865505,0.01985492,113400.0,113390.0,0.32747755]
[1754153865886,0.05496425,113400.0,113390.0,0.34092657]
[1754153866120,0.01985492,113400.0,113390.0,0.45987646]
[1754153866324,0.00604791,113400.0,113390.0,0.45787646]
[1754153866743,0.00604791,113400.0,113390.0,0.46387646]
[1754153867150,0.00904791,113400.0,113390.0,0.46387646]
[1754153867772,0.00604791,113400.0,113390.0,0.46387646]
[1754153867975,4.791e-05,113400.0,113390.0,0.46387646]
[1754153868187,0.00104791,113400.0,113390.0,0.46387646]
[1754153868397,0.00304791,113400.0,113390.0,0.46387646]
[1754153868948,0.00304791,113400.0,113390.0,0.46587646]
[1754153869374,0.00304791,113400.0,113390.0,0.13839891]
[1754153869569,0.00304791,113400.0,113390.0,0.46808123]
[1754153869787,0.03939242,113400.0,113390.0,0.46587646]
[1754153870200,0.00304791,113400.0,113390.0,0.46587646]
[1754153870403,0.00304791,113400.0,113390.0,0.46793646]
[1754153870603,0.01685363,113400.0,113390.0,0.46793646]
[1754153873129,0.0530594,113400.0,113390.0,0.46793646]
[1754153873332,0.01685363,113400.0,113390.0,0.14045891]
[1754153873533,0.01685363,113400.0,113390.0,0.86766212]
[1754153873751,0.00304791,113400.0,113390.0,0.86545735]
[1754153876317,0.00304791,113400.0,113390.0,0.79541401]
[1754153876979,0.00304791,113400.0,113390.0,0.79491115]
[1754153877760,0.00304791,113400.0,113390.0,0.46768503]
[1754153878982,0.00304791,113400.0,113390.0,0.14045891]
[1754153879237,0.00304791,113400.0,113390.0,0.79711592]
[1754153879412,0.00304791,113400.0,113390.0,0.79491115]
[1754153880095,0.00304791,113400.0,113390.0,0.14045891]
[1754153880326,0.00304791,113400.0,113390.0,0.4698898]
[1754153880533,0.00304791,113400.0,113390.0,0.27933891]
[1754153880744,0.00304791,113400.0,113390.0,0.60656503]
[1754153881156,0.00304791,113400.0,113390.0,0.13839891]
[1754153881365,0.00304791,113400.0,113390.0,0.27723891]
[1754153881794,0.00304791,113400.0,113390.0,0.60647503]
[1754153883491,0.00304791,113400.0,113390.0,0.93370115]
[1754153883695,0.00304791,113400.0,113390.0,0.9625304]
[1754153883898,0.00304791,113400.0,113390.0,0.9890414]
[1754153888168,0.00304791,113400.0,113390.0,0.66181528]
[1754153889752,0.00304791,113400.0,113390.0,0.9890414]
[1754153893103,0.00304791,113400.0,113390.0,1.2587414]
[1754153895069,0.00304791,113400.0,113390.0,1.3517914]
[1754153895274,0.00304791,113400.0,113390.0,1.2587414]
[1754153900812,0.00304791,113400.0,113390.0,1.3767914]
[1754153901022,0.00304791,113400.0,113390.0,1.7417914]
[1754153901673,4.791e-05,113400.0,113390.0,1.7397914]
[1754153902111,4.791e-05,113400.0,113390.0,1.7417914]
[1754153904133,4.791e-05,113400.0,113390.0,1.7427914]
[1754153905605,4.791e-05,113400.0,113390.0,1.71396215]
[1754153905818,4.791e-05,113400.0,113390.0,1.05950991]
[1754153906017,4.791e-05,113400.0,113390.0,1.71396215]
[1754153907424,4.791e-05,113400.0,113390.0,1.7427914]
[1754153912445,4.791e-05,113400.0,113390.0,2.07001752]
[1754153913312,4.791e-05,113400.0,113390.0,1.7427914]
[1754153918736,4.791e-05,113400.0,113390.0,1.71368215]
[1754153919201,4.791e-05,113400.0,113390.0,1.18919701]
[1754153919662,4.791e-05,113400.0,113390.0,0.91949701]
[1754153919892,4.791e-05,113400.0,113390.0,0.93494603]
[1754153920122,4.791e-05,113400.0,113390.0,0.91849701]
[1754153920357,4.791e-05,113400.0,113390.0,0.93594603]
[1754153920800,4.791e-05,113400.0,113390.0,0.93494603]
[1754153921533,4.791e-05,113400.0,113390.0,0.93694603]
[1754153922464,4.791e-05,113400.0,113390.0,0.97291603]
[1754153923898,4.791e-05,113400.0,113390.0,0.93694603]
[1754153924823,4.791e-05,113400.0,113390.0,0.59694603]
[1754153925061,4.791e-05,113400.0,113390.0,0.26971991]
[1754153925304,4.791e-05,113400.0,113390.0,0.59694603]
[1754153925754,4.791e-05,113400.0,113390.0,0.25227089]
[1754153925967,4.791e-05,113400.0,113390.0,0.55298601]
[1754153926404,4.791e-05,113400.0,113390.0,0.57043503]
[1754153927944,4.791e-05,113400.0,113390.0,0.24320891]
[1754153928234,0.01385204,113400.0,113390.0,0.24320891]
[1754153928996,0.01385204,113400.0,113390.0,0.57043503]
[1754153929231,0.01385204,113400.0,113390.0,0.24312891]
[1754153929492,0.04922763,113400.0,113390.0,0.24312891]
[1754153930194,0.01385204,113400.0,113390.0,0.57035503]
[1754153930629,0.01385204,113400.0,113390.0,0.56935503]
[1754153930853,0.01585204,113400.0,113390.0,0.56935503]
[1754153931093,0.01585204,113400.0,113390.0,0.56735503]
[1754153932985,0.01585204,113400.0,113390.0,0.56235503]
[1754153935378,0.01585204,113400.0,113390.0,0.23512891]
[1754153935590,0.01585204,113400.0,113390.0,0.56235503]
[1754153935809,0.01585204,113400.0,113390.0,0.59431503]
[1754153937504,0.01585204,113400.0,113390.0,0.23512891]
[1754153939893,0.01585204,113400.0,113390.0,0.23012891]
[1754153942130,0.01585204,113400.0,113390.0,0.15592902]
[1754153942348,0.01585204,113400.0,113390.0,0.13848]
[1754153943441,0.34307816,113400.0,113390.0,0.13848]
[1754153943657,0.35585204,113400.0,113390.0,0.13848]
[1754153943879,0.35585204,113400.0,113380.0,0.1384]
[1754153944090,0.35585204,113400.0,113380.0,0.17036]
[1754153944310,0.35585204,113400.0,113380.0,0.1736]
[1754153944750,0.35385204,113400.0,113380.0,0.1736]
[1754153944963,0.35585204,113400.0,113380.0,0.1736]
[1754153946757,0.34204791,113400.0,113380.0,0.1736]
[1754153946990,0.34204791,113400.0,113380.0,0.1686]
[1754153947439,0.34204791,113400.0,113380.0,0.49582612]
[1754153949400,0.34204791,113400.0,113390.0,0.03196]
[1754153949835,0.35585503,113400.0,113390.0,0.03196]
[1754153950834,0.35385503,113400.0,113390.0,0.03196]
[1754153951192,0.35585503,113400.0,113380.0,0.1686]
[1754153951395,0.35585503,113400.0,113380.0,0.49582612]
[1754153951608,0.35585503,113400.0,113380.0,0.1686]
[1754153951819,0.35585503,113400.0,113380.0,0.49582612]
[1754153952021,0.35385503,113400.0,113380.0,0.49582612]
[1754153952238,0.35585503,113400.0,113380.0,0.49582612]
[1754153952638,0.35585503,113400.0,113380.0,0.46386612]
[1754153952639,0.01580712,113400.0,113380.0,0.46386612]
[1754153952848,0.01580712,113400.0,113390.0,0.0352]
[1754153953785,0.01580712,113400.0,113390.0,0.36440612]
[1754153954200,0.01380712,113400.0,113390.0,0.35940612]
[1754153954397,0.01580712,113400.0,113390.0,0.35940612]
[1754153955045,0.01580712,113400.0,113390.0,0.03218]
[1754153955454,0.01580712,113400.0,113390.0,0.0302]
[1754153957968,0.01580712,113400.0,113390.0,0.03218]
[1754153961053,0.01580712,113400.0,113390.0,0.02718]
[1754153965631,0.01580712,113400.0,113390.0,0.35440612]